bitfinex-derivatives/quotes_ETHF0:USTF0_20241008
["timestamp","ask_amount","ask_price","bid_price","bid_amount"]
[1728414405018,6.37524,2429.9,2429.8,0.41174]
[1728414405409,10.49044,2429.9,2429.8,0.41174]
[1728414409616,0.41176,2429.8,2429.7,0.41174]
[1728414414514,1.89176,2429.8,2429.7,0.41174]
[1728414418913,0.41178,2429.7,2429.6,0.41176]
[1728414423430,1.89175,2429.8,2429.7,0.41175]
[1728414430833,1.48,2429.8,2429.7,0.41175]
[1728414431039,1.48,2429.8,2429.7,3.61955]
[1728414431331,1.89174,2429.8,2429.7,0.41175]
[1728414432530,0.9223,2429.9,2429.8,0.41174]
[1728414432727,0.41168,2430.2,2429.9,1.02931]
[1728414432939,0.81640621,2430.2,2430.1,0.41169]
[1728414433237,1.89169,2430.2,2430.1,0.41168]
[1728414433434,1.48,2430.2,2429.9,0.8758]
[1728414433635,1.8917,2430.0,2429.9,0.41171]
[1728414435126,0.41172,2429.9,2429.8,1.30273]
[1728414437946,1.89172,2430.0,2429.9,0.41172]
[1728414439243,1.89172,2430.0,2429.8,1.30272]
[1728414439244,0.41172,2429.9,2429.8,1.30272]
[1728414440042,0.41172,2429.9,2429.8,0.891]
[1728414440233,0.41172,2429.9,2429.7,3.61955]
[1728414440234,0.41174,2429.8,2429.7,3.61955]
[1728414440433,1.89174,2429.8,2429.7,3.61955]
[1728414442336,0.41177,2429.7,2429.6,0.41176]
[1728414442533,0.41177,2429.7,2429.1,1.81319484]
[1728414442534,0.41184,2429.2,2429.1,0.41185]
[1728414442837,0.41184,2429.2,2429.0,0.41187]
[1728414442838,0.41186,2429.1,2429.0,0.41187]
[1728414443139,1.32096,2429.1,2429.0,0.41187]
[1728414443344,1.32096,2429.1,2429.0,4.52867]
[1728414443548,0.9091,2429.1,2429.0,0.41187]
[1728414443736,1.32096,2429.1,2429.0,0.41187]
[1728414444141,0.9091,2429.1,2429.0,0.41187]
[1728414445248,1.32096,2429.1,2429.0,4.52867]
[1728414445642,0.9091,2429.1,2429.0,4.52867]
[1728414445947,1.89185,2429.2,2429.1,0.41186]
[1728414447650,1.29972,2429.4,2429.3,0.41182]
[1728414447847,2.77972,2429.4,2429.3,0.41182]
[1728414448445,1.02933,2429.9,2429.3,0.8952]
[1728414448644,1.89175,2429.7,2429.6,3.61956]
[1728414448847,1.48,2429.7,2429.6,3.61956]
[1728414449048,1.89175,2429.7,2429.6,0.41176]
[1728414449950,1.48,2429.7,2429.3,5.13255]
[1728414450147,1.89179,2429.6,2429.5,0.41178]
[1728414450552,1.89179,2429.6,2429.5,4.52778]
[1728414450853,0.4118,2429.5,2429.4,0.4118]
[1728414451062,1.8918,2429.4,2429.3,1.30702]
[1728414451354,1.8918,2429.4,2429.1,1.7888]
[1728414451355,1.48,2429.4,2429.1,1.7888]
[1728414451556,1.48,2429.4,2429.2,0.41183]
[1728414451557,1.26484,2429.3,2429.2,0.41183]
[1728414452050,0.41184,2429.2,2429.1,2.18925]
[1728414452251,1.89184,2429.2,2429.1,2.18925]
[1728414453663,1.89184,2429.2,2429.1,6.30605]
[1728414454569,1.48,2429.2,2429.1,6.30605]
[1728414454967,1.02938,2429.8,2429.1,11.8942]
[1728414455271,2.77944,2429.8,2429.7,0.41175]
[1728414455666,0.8877,2429.8,2429.7,0.41175]
[1728414455969,0.9388,2429.9,2429.8,0.41174]
[1728414456160,1.89172,2429.9,2429.8,3.61954]
[1728414456356,0.41172,2429.9,2429.8,3.61954]
[1728414456860,0.41175,2429.8,2429.7,0.41174]
[1728414458972,3.62175,2429.8,2429.7,0.41174]
[1728414459769,3.21,2429.8,2429.6,0.9409]
[1728414459974,0.41177,2429.6,2429.5,3.61956]
[1728414460370,0.41177,2429.6,2429.5,3.61958]
[1728414460868,3.21,2429.9,2429.5,8.35327]
[1728414461174,3.21,2429.9,2429.8,0.41174]
[1728414461175,3.62172,2429.9,2429.8,0.41174]
[1728414462265,1.29941,2430.0,2429.9,0.41172]
[1728414463067,0.41171,2430.0,2429.9,0.41172]
[1728414466577,1.8517,2430.1,2429.8,3.2078]
[1728414466877,0.41168,2430.2,2430.1,0.41167]
[1728414467181,0.41167,2430.3,2430.2,0.41165]
[1728414467370,0.41167,2430.2,2430.1,4.53107]
[1728414467570,1.31927,2430.2,2430.1,4.53107]
[1728414469275,1.31927,2430.2,2430.1,3.61947]
[1728414470972,4.1176,2430.2,2429.8,4.1089]
[1728414471172,0.41174,2429.9,2429.8,0.41173]
[1728414471783,2.1693,2430.1,2430.0,0.4117]
[1728414472185,2.1693,2430.1,2429.8,3.2078]
[1728414472375,1.7576,2430.1,2429.8,3.2078]
[1728414472684,0.41172,2429.9,2429.8,3.61952]
[1728414476886,0.41172,2429.9,2429.8,0.41172]
[1728414478882,2.50926,2430.0,2429.5,4.9655]
[1728414479074,1.89177,2429.6,2429.5,3.61957]
[1728414479278,1.89177,2429.6,2429.5,0.41177]
[1728414479482,3.59657,2429.6,2429.5,0.41177]
[1728414479882,0.4118,2429.5,2429.4,0.41179]
[1728414481883,0.9041,2429.8,2429.2,5.0124]
[1728414482091,0.9041,2429.8,2429.7,0.41175]
[1728414482092,1.31585,2429.8,2429.7,0.41175]
[1728414482587,2.3841,2429.8,2429.5,3.2078]
[1728414482789,1.89177,2429.6,2429.5,0.41178]
[1728414483087,0.4118,2429.4,2429.3,2.20512]
[1728414483299,1.8918,2429.4,2429.3,1.32632]
[1728414483693,0.4118,2429.4,2429.3,1.32632]
[1728414483885,1.3401,2429.4,2429.3,1.32632]
[1728414484395,0.9283,2429.4,2429.3,4.53412]
[1728414484692,1.89178,2429.6,2429.3,4.1223]
[1728414484894,1.89178,2429.6,2429.5,0.41179]
[1728414485283,1.89178,2429.6,2429.3,4.1223]
[1728414485499,1.89178,2429.6,2429.4,0.41179]
[1728414485500,0.4118,2429.5,2429.4,0.41179]
[1728414485793,1.292,2429.5,2429.4,0.41179]
[1728414487189,0.4118,2429.4,2429.3,3.6196]
[1728414487399,2.2021,2429.4,2429.3,3.6196]
[1728414487896,0.8803,2429.4,2429.3,3.6196]
[1728414488197,1.2921,2429.4,2429.3,3.6196]
[1728414488597,0.8803,2429.4,2429.3,3.6196]
[1728414488803,1.7655,2429.7,2429.3,3.2078]
[1728414488996,1.7655,2429.7,2429.5,0.41177]
[1728414488997,0.41178,2429.6,2429.5,0.41177]
[1728414490291,1.89178,2429.6,2429.5,0.41177]
[1728414490497,0.4118,2429.5,2429.4,0.41179]
[1728414492897,1.89178,2429.6,2429.5,0.41179]
[1728414493598,0.41178,2429.6,2429.5,0.41179]
[1728414495195,0.41177,2429.7,2429.6,0.41175]
[1728414495391,0.41172,2430.0,2429.9,0.4117]
[1728414495598,0.4117,2430.1,2430.0,0.41169]
[1728414495791,0.4117,2430.1,2430.0,1.27719]
[1728414495997,0.4117,2430.1,2430.0,0.8655]
[1728414496397,0.4117,2430.1,2430.0,1.2772]
[1728414496997,0.4117,2430.1,2430.0,0.8655]
[1728414497201,0.4117,2430.1,2430.0,1.2772]
[1728414497892,0.41164,2430.4,2430.3,0.41163]
[1728414498102,4.81858452,2431.0,2430.3,4.6878]
[1728414498407,0.41164,2430.5,2430.4,0.41163]
[1728414498605,1.48,2430.7,2430.3,3.2078]
[1728414498795,1.8916,2430.7,2430.6,0.4116]
[1728414498992,0.4116,2430.7,2430.6,0.4116]
[1728414499797,0.4116,2430.7,2430.6,3.6194]
[1728414501203,0.7317,2430.8,2430.6,3.2078]
[1728414501403,0.7317,2430.8,2430.7,0.41158]
[1728414501404,1.14328,2430.8,2430.7,0.41158]
[1728414502106,0.7317,2430.8,2430.3,4.23692]
[1728414502296,1.14328,2430.8,2430.7,0.41158]
[1728414503097,1.14328,2430.8,2430.5,0.8818]
[1728414503098,0.7317,2430.8,2430.5,0.8818]
[1728414503298,0.41162,2430.5,2430.4,0.41162]
[1728414505103,0.41161,2430.6,2430.5,0.41161]
[1728414505699,2.41299,2430.7,2430.3,3.2078]
[1728414506012,0.41163,2430.5,2430.4,0.41162]
[1728414506502,0.41164,2430.4,2430.3,3.61943]
[1728414506910,0.41164,2430.4,2430.3,7.73383]
[1728414507205,0.41161,2430.6,2430.5,0.41161]
[1728414507414,0.7317,2430.8,2430.3,4.23693]
[1728414507713,1.14327,2430.8,2430.7,0.41158]
[1728414510202,0.7317,2430.8,2430.7,0.41158]
[1728414510807,1.14327,2430.8,2430.7,0.41158]
[1728414511110,0.7317,2430.8,2430.7,0.41158]
[1728414511307,1.14327,2430.8,2430.7,0.41158]
[1728414511808,3.19123182,2431.1,2430.6,4.0517]
[1728414512010,0.41157,2430.9,2430.8,0.41155]
[1728414512509,0.698,2431.1,2430.8,4.1136]
[1728414512718,1.10952,2431.1,2431.0,0.41153]
[1728414513111,0.698,2431.1,2431.0,0.41153]
[1728414513507,1.10952,2431.1,2431.0,0.41153]
[1728414514218,1.02872,2431.3,2431.1,0.4115]
[1728414514219,0.41151,2431.2,2431.1,0.4115]
[1728414514513,0.41151,2431.2,2431.1,1.2789]
[1728414517522,0.41153,2431.0,2430.9,3.61934]
[1728414517814,0.41153,2431.0,2430.9,3.2078]
[1728414520423,0.41153,2431.0,2430.9,3.61935]
[1728414523316,1.02879,2431.2,2431.0,0.41151]
[1728414523317,0.41153,2431.1,2431.0,0.41151]
[1728414523624,0.41153,2431.1,2431.0,1.89151]
[1728414523920,0.41153,2431.1,2431.0,2.40791]
[1728414524918,0.41151,2431.2,2431.1,0.4115]
[1728414525916,1.08259,2431.3,2431.2,0.4115]
[1728414526122,1.08259,2431.3,2431.2,3.2078]
[1728414526325,1.08259,2431.3,2431.2,3.6193]
[1728414526514,4.74445145,2431.6,2431.2,3.2078]
[1728414526515,0.75785145,2431.6,2431.2,3.2078]
[1728414526716,0.5012,2431.5,2431.4,0.41145]
[1728414526921,0.91266,2431.5,2431.4,0.41145]
[1728414530228,1.0114,2431.7,2431.6,0.41143]
[1728414530418,0.9745,2431.7,2431.6,0.41143]
[1728414530625,1.38591,2431.7,2431.6,0.41143]
[1728414530824,0.88571,2431.7,2431.6,0.41143]
[1728414531823,0.4743,2431.7,2431.6,1.89143]
[1728414532024,0.88518,2432.0,2431.9,0.41138]
[1728414532226,1.80091381,2432.4,2431.9,3.2078]
[1728414532527,0.41136,2432.1,2432.0,1.89134]
[1728414532831,0.41136,2432.1,2432.0,2.36854]
[1728414533129,0.41136,2432.1,2432.0,5.00056]
[1728414533517,0.41136,2432.1,2432.0,0.88856]
[1728414533723,0.41136,2432.1,2432.0,5.00056]
[1728414534122,0.41136,2432.1,2432.0,0.88856]
[1728414535924,1.02833,2432.3,2432.0,0.4772]
[1728414536232,1.02833,2432.3,2432.2,0.41132]
[1728414536233,0.41134,2432.3,2432.2,0.41132]
[1728414536425,0.4738,2432.4,2432.2,0.41132]
[1728414536426,0.4738,2432.4,2432.2,3.2078]
[1728414536624,0.88511,2432.4,2432.3,0.41131]
[1728414536829,0.4738,2432.4,2432.3,0.41131]
[1728414537023,0.5011,2432.5,2432.3,4.1112]
[1728414537231,0.5011,2432.5,2432.2,3.2078]
[1728414537232,0.4113,2432.5,2432.4,0.4113]
[1728414537936,0.41124,2432.8,2432.7,0.41123]
[1728414538123,0.4837,2433.0,2432.8,0.41122]
[1728414538438,0.4837,2433.0,2432.6,3.61905]
[1728414538439,0.41125,2432.7,2432.6,3.61905]
[1728414538824,0.41125,2432.7,2432.6,7.72945]
[1728414539435,0.4837,2433.0,2432.6,7.3182]
[1728414539628,0.4837,2433.0,2432.7,0.41124]
[1728414539629,0.41125,2432.8,2432.7,0.41124]
[1728414540128,0.41125,2432.8,2432.7,4.52164]
[1728414540938,0.41125,2432.8,2432.7,4.1104]
[1728414541128,1.51171,2433.0,2432.6,3.61906]
[1728414541436,0.41125,2432.7,2432.6,3.61906]
[1728414541637,0.41123,2432.8,2432.7,0.41123]
[1728414542336,0.4837,2433.0,2432.6,3.2078]
[1728414542529,0.4837,2433.0,2432.8,0.41123]
[1728414542530,0.41123,2432.9,2432.8,0.41123]
[1728414542730,0.89491,2433.0,2432.9,0.41121]
[1728414543431,0.90879,2433.1,2433.0,0.4112]
[1728414543733,0.4976,2433.1,2433.0,0.4112]
[1728414544241,0.4976,2433.1,2433.0,0.8918]
[1728414544821,0.90878,2433.1,2433.0,0.8918]
[1728414545135,0.90878,2433.1,2433.0,0.4112]
[1728414545830,0.4112,2433.0,2432.9,3.619]
[1728414546338,0.4112,2433.0,2432.9,3.61901]
[1728414547032,0.4112,2433.0,2432.9,3.2078]
[1728414547928,0.41121,2432.9,2432.8,0.41122]
[1728414548433,0.41121,2433.0,2432.9,0.4112]
[1728414549239,0.41121,2433.0,2432.9,3.619]
[1728414554038,0.41121,2433.0,2432.9,0.4112]
[1728414556641,0.41121,2433.0,2432.8,3.21]
[1728414556642,0.4976,2433.1,2432.8,3.21]
[1728414556845,0.4976,2433.1,2432.8,0.41121]
[1728414556846,0.41121,2432.9,2432.8,0.41121]
[1728414559042,0.41121,2432.9,2432.6,4.71656]
[1728414559043,0.41125,2432.8,2432.7,0.41123]
[1728414559242,0.89325,2432.8,2432.7,0.41123]
[1728414559443,0.482,2432.8,2432.7,0.41123]
[1728414559642,0.41122,2433.0,2432.9,0.4112]
[1728414561247,0.41122,2433.0,2432.6,3.6884]
[1728414561449,0.41124,2432.8,2432.7,0.41123]
[1728414562448,0.41124,2432.8,2432.7,1.89123]
[1728414566452,0.41123,2432.9,2432.8,0.41121]
[1728414569250,0.41121,2433.0,2432.9,0.4112]
[1728414571662,0.41121,2433.0,2432.9,5.099]
[1728414575563,0.41121,2433.0,2432.9,1.8912]
[1728414576366,0.4112,2433.0,2432.9,1.8912]
[1728414578469,0.4976,2433.1,2432.9,5.5904]
[1728414578670,0.90879,2433.1,2433.0,0.4112]
[1728414579265,0.4976,2433.1,2433.0,0.4112]
[1728414579469,0.9326,2433.4,2433.3,0.41114]
[1728414579772,0.4847,2433.4,2433.3,1.89114]
[1728414580274,10.17256732,2434.4,2433.4,1.02781]
[1728414580565,0.41101,2434.2,2434.1,1.48]
[1728414580772,0.41101,2434.2,2434.1,1.89101]
[1728414580973,0.41101,2434.2,2433.8,3.2078]
[1728414580974,2.8432,2434.3,2433.5,3.6684]
[1728414581272,0.41105,2433.9,2433.8,0.41105]
[1728414581677,0.82355,2433.9,2433.8,0.41105]
[1728414582269,0.41106,2433.8,2433.7,1.48]
[1728414582474,0.9179,2433.8,2433.6,1.48]
[1728414582676,0.9179,2433.8,2433.7,1.48]
[1728414582875,1.32896,2433.8,2433.7,1.48]
[1728414583974,0.41109,2433.6,2433.5,3.2078]
[1728414584168,1.94559,2433.8,2433.4,1.89113]
[1728414584169,0.41111,2433.5,2433.4,1.89113]
[1728414584477,0.82781,2433.5,2433.4,0.41113]
[1728414585773,0.82781,2433.5,2433.4,4.52073]
[1728414587076,0.82781,2433.5,2433.4,0.41113]
[1728414587779,0.82781,2433.5,2433.3,3.21]
[1728414587780,0.41113,2433.4,2433.3,0.41113]
[1728414587972,0.41114,2433.3,2433.2,6.82896]
[1728414588177,0.41114,2433.3,2433.2,3.2078]
[1728414588178,0.92454,2433.3,2433.2,3.2078]
[1728414589377,0.4112,2433.0,2432.9,3.61901]
[1728414589585,0.4112,2433.0,2432.9,3.2078]
[1728414590473,0.4112,2433.0,2432.9,3.61901]
[1728414590677,0.41123,2432.8,2432.7,3.62123]
[1728414590885,0.41123,2432.8,2432.7,3.21]
[1728414591377,0.83583,2432.8,2432.7,3.21]
[1728414591586,0.83583,2432.8,2432.7,3.62125]
[1728414592580,1.25183,2432.8,2432.7,3.62125]
[1728414595082,0.8406,2432.8,2432.7,3.62125]
[1728414595283,0.8406,2432.8,2432.7,6.82905]
[1728414595581,0.416,2432.8,2432.7,6.82905]
[1728414597181,0.82723,2432.8,2432.7,6.82905]
[1728414600683,0.416,2432.8,2432.7,6.82905]
[1728414601384,0.82723,2432.8,2432.7,6.82905]
[1728414601881,0.416,2432.8,2432.7,6.82905]
[1728414604085,0.4112,2433.0,2432.9,0.41121]
[1728414604281,0.8445,2433.0,2432.9,0.41121]
[1728414604880,5.20077,2433.6,2432.9,3.21]
[1728414605190,0.41107,2433.8,2433.7,0.41106]
[1728414605383,1.29047,2433.8,2433.7,0.41106]
[1728414605578,0.8794,2433.8,2433.7,0.41106]
[1728414605783,0.41098,2434.3,2434.0,0.41101]
[1728414605978,0.4374,2434.2,2434.1,0.41101]
[1728414606897,0.4374,2434.2,2434.1,3.61881]
[1728414607078,0.4374,2434.2,2434.1,0.41101]
[1728414607283,0.84839,2434.2,2434.1,0.41101]
[1728414607891,0.4374,2434.2,2434.1,0.41101]
[1728414608280,0.84839,2434.2,2434.1,0.41101]
[1728414608588,0.4374,2434.2,2434.1,0.41101]
[1728414611595,3.2078,2434.5,2434.1,6.4178]
[1728414611989,0.41097,2434.4,2434.3,0.41096]
[1728414612590,3.2078,2434.5,2434.1,6.4178]
[1728414612788,3.61875,2434.5,2434.4,0.41096]
[1728414612992,0.4412,2434.6,2434.5,0.41094]
[1728414613193,0.4412,2434.6,2434.4,0.41095]
[1728414613491,0.4412,2434.6,2434.3,3.21]
[1728414613492,1.46853,2434.6,2434.3,3.62097]
[1728414613688,0.41095,2434.5,2434.4,0.41095]
[1728414615295,0.4412,2434.6,2434.3,3.21]
[1728414615692,0.41095,2434.5,2434.4,0.41095]
[1728414615893,0.85214,2434.6,2434.5,0.41094]
[1728414616191,0.41096,2434.5,2434.4,0.41095]
[1728414620197,0.41099,2434.2,2434.1,3.6188]
[1728414620399,1.0274,2434.4,2434.2,0.41098]
[1728414620400,0.41099,2434.3,2434.2,0.41098]
[1728414620587,1.0274,2434.4,2434.1,6.4178]
[1728414620894,0.41099,2434.2,2434.1,6.4178]
[1728414621395,0.41099,2434.2,2434.1,6.82881]
[1728414621603,0.83129,2434.2,2434.1,6.4178]
[1728414621900,0.83129,2434.2,2434.1,3.2078]
[1728414622201,0.41106,2433.8,2433.7,3.21]
[1728414622497,0.41107,2433.8,2433.7,0.41107]
[1728414622697,0.41107,2433.8,2433.6,3.6193]
[1728414622698,1.44781,2434.2,2433.6,3.6193]
[1728414622897,0.41108,2433.7,2433.6,4.03038]
[1728414623199,0.41109,2433.6,2433.5,3.21]
[1728414623393,0.41109,2433.6,2433.5,3.62111]
[1728414623594,0.41109,2433.6,2433.5,3.21]
[1728414623790,1.91489,2433.8,2433.3,6.8328]
[1728414624097,0.41112,2433.5,2433.4,0.41111]
[1728414624496,1.3274,2433.8,2433.3,6.8328]
[1728414624797,0.41113,2433.4,2433.3,7.24394]
[1728414624991,1.3274,2433.8,2433.1,3.6461]
[1728414625202,0.41115,2433.3,2433.2,0.41114]
[1728414625517,0.41116,2433.2,2433.1,3.21]
[1728414625700,0.41116,2433.2,2432.9,3.6212]
[1728414625701,0.4112,2433.0,2432.9,3.6212]
[1728414626400,0.41123,2432.8,2432.7,6.82904]
[1728414626593,0.41123,2432.8,2432.7,3.2078]
[1728414626993,0.41123,2432.9,2432.8,0.41123]
[1728414627199,1.02802,2433.0,2432.7,3.2078]
[1728414627398,1.02802,2433.0,2432.7,3.61903]
[1728414627399,0.41123,2432.8,2432.7,3.61903]
[1728414627600,0.41123,2432.8,2432.7,3.2078]
[1728414628305,0.41128,2432.5,2432.4,3.21]
[1728414628798,0.41128,2432.5,2432.4,3.6213]
[1728414629108,0.41128,2432.5,2432.4,3.21]
[1728414629304,0.41133,2432.2,2432.1,6.4178]
[1728414629504,1.02816,2432.6,2432.1,10.529]
[1728414629707,0.4113,2432.4,2432.1,6.4178]
[1728414630100,0.4222,2432.7,2432.1,6.4178]
[1728414630407,0.41132,2432.3,2432.1,6.82914]
[1728414630602,1.02821,2432.5,2432.1,6.4178]
[1728414630804,0.41133,2432.2,2432.1,6.4178]
[1728414631103,0.41133,2432.2,2432.1,6.82915]
[1728414631700,0.4425,2432.4,2431.9,3.6554]
[1728414631905,0.41134,2432.2,2431.9,3.6554]
[1728414632209,0.41135,2432.1,2432.0,0.41136]
[1728414632405,0.4114,2431.8,2431.7,0.4114]
[1728414632614,1.02838,2432.1,2431.6,3.21]
[1728414632917,0.83568,2432.0,2431.8,0.41139]
[1728414633404,1.45274,2432.0,2431.6,3.62143]
[1728414633599,0.41141,2431.8,2431.6,3.62143]
[1728414634204,1.45274,2432.0,2431.5,6.4178]
[1728414634410,0.41143,2431.6,2431.5,6.4178]
[1728414634608,1.02852,2431.8,2431.4,0.41145]
[1728414634609,0.41145,2431.5,2431.4,0.41145]
[1728414635110,0.4265,2431.7,2431.4,0.41145]
[1728414635409,0.41146,2431.5,2431.3,4.06077]
[1728414635804,0.41146,2431.5,2431.4,0.41147]
[1728414636610,1.45506,2431.7,2431.3,3.6493]
[1728414636611,0.41147,2431.4,2431.3,0.41148]
[1728414637708,1.02859,2431.6,2431.1,6.4178]
[1728414637905,0.41149,2431.3,2431.2,0.41149]
[1728414638208,3.21,2431.6,2430.8,6.4178]
[1728414638406,0.41154,2431.0,2430.9,0.41154]
[1728414638606,1.02867,2431.4,2430.9,0.41154]
[1728414638803,0.41154,2431.0,2430.9,0.41155]
[1728414639004,0.41151,2431.2,2431.1,0.41151]
[1728414639210,0.8329,2431.5,2430.9,3.21]
[1728414639509,0.8329,2431.5,2431.3,0.41148]
[1728414639510,0.41147,2431.4,2431.3,0.41148]
[1728414639807,0.41151,2431.2,2431.1,0.41152]
[1728414640002,1.02867,2431.4,2430.9,3.21]
[1728414640408,0.41147,2431.4,2431.2,0.41149]
[1728414640599,0.41149,2431.3,2431.1,0.4115]
[1728414640800,1.86154,2431.5,2430.9,3.21]
[1728414641107,0.41151,2431.2,2431.0,0.41152]
[1728414641305,1.86154,2431.5,2431.0,0.41153]
[1728414641306,0.41153,2431.1,2431.0,0.41153]
[1728414641910,0.41153,2431.1,2430.9,3.62154]
[1728414642208,3.21,2431.4,2430.9,0.41154]
[1728414642401,1.44033,2431.1,2430.6,0.82759]
[1728414642607,0.41157,2430.8,2430.7,0.41158]
[1728414643111,1.89186,2431.0,2430.6,3.6238]
[1728414643307,1.89186,2431.0,2430.8,0.41157]
[1728414643308,0.41156,2430.9,2430.8,0.41157]
[1728414643504,0.41155,2430.9,2430.8,0.41156]
[1728414644116,0.863,2431.0,2430.7,0.41157]
[1728414644117,0.41157,2430.8,2430.7,0.41157]
[1728414644508,0.41156,2430.9,2430.8,0.41156]
[1728414645418,0.863,2431.0,2430.6,3.6238]
[1728414645616,0.863,2431.0,2430.8,0.41157]
[1728414645617,0.41155,2430.9,2430.8,0.41157]
[1728414646408,0.41158,2430.7,2430.6,3.2078]
[1728414650011,0.41158,2430.7,2430.6,3.6194]
[1728414650909,0.41158,2430.7,2430.6,3.2078]
[1728414651817,4.52598,2430.7,2430.6,3.2078]
[1728414655118,0.41162,2430.5,2430.4,3.61943]
[1728414656413,0.4269,2430.6,2430.4,3.61943]
[1728414656614,0.4269,2430.6,2430.4,0.41163]
[1728414656811,0.41162,2430.5,2430.4,0.41163]
[1728414657010,0.41162,2430.5,2430.4,3.61943]
[1728414660616,0.41162,2430.5,2430.4,3.2078]
[1728414660817,4.52602,2430.5,2430.4,3.2078]
[1728414661019,0.82642,2430.5,2430.4,3.2078]
[1728414661318,4.94082,2430.5,2430.4,3.2078]
[1728414661520,0.82642,2430.5,2430.4,3.2078]
[1728414661723,4.94082,2430.5,2430.4,3.2078]
[1728414662721,0.82642,2430.5,2430.4,3.2078]
[1728414662922,4.94082,2430.5,2430.4,3.2078]
[1728414663127,0.41162,2430.5,2430.4,3.2078]
[1728414663327,0.41162,2430.5,2430.4,3.61944]
[1728414664222,0.41162,2430.5,2430.4,4.06764]
[1728414665423,0.4269,2430.6,2430.4,4.06764]
[1728414665424,0.4269,2430.6,2430.4,3.656]
[1728414665626,1.8671,2430.9,2430.4,3.656]
[1728414665826,0.41156,2430.9,2430.8,0.41157]
[1728414666133,0.41154,2431.0,2430.9,0.41155]
[1728414669028,4.23874,2431.3,2430.8,1.45801]
[1728414669234,0.41153,2431.2,2431.1,0.4115]
[1728414670031,1.85037,2431.4,2430.9,1.42578]
[1728414670333,0.4115,2431.3,2431.2,0.41148]
[1728414670536,0.41147,2431.5,2431.4,0.41147]
[1728414671334,3.62144,2431.7,2431.6,0.41143]
[1728414671641,0.41144,2431.7,2431.6,0.41143]
[1728414671836,0.41141,2431.8,2431.7,0.4114]
[1728414672437,0.7809,2431.9,2431.6,0.4109]
[1728414672642,0.41141,2431.8,2431.7,0.4114]
[1728414675943,0.41141,2431.8,2431.6,3.6187]
[1728414675944,3.21,2432.0,2431.6,3.6187]
[1728414676248,0.41141,2431.8,2431.7,0.4114]
[1728414681362,0.41141,2431.8,2431.2,3.2078]
[1728414681363,13.322,2431.8,2431.2,3.2078]
[1728414681651,0.41153,2431.1,2431.0,0.41152]
[1728414682058,4.23874,2431.3,2430.9,1.24734]
[1728414682059,0.41153,2431.0,2430.9,1.24734]
[1728414682559,0.80372,2431.2,2431.1,0.41152]
[1728414683054,0.80372,2431.2,2430.9,0.8358]
[1728414683055,0.3922,2431.2,2430.9,0.8358]
[1728414683258,0.41153,2431.1,2431.0,0.41152]
[1728414685956,0.41149,2431.3,2431.2,0.4115]
[1728414686258,0.4032,2431.6,2431.1,4.2366]
[1728414686449,0.4032,2431.6,2431.5,0.41145]
[1728414686450,0.81464,2431.6,2431.5,0.41145]
[1728414689062,0.4032,2431.6,2431.5,0.41145]
[1728414689262,3.21,2431.9,2431.7,0.4114]
[1728414689263,0.41141,2431.8,2431.7,0.4114]
[1728414689460,3.2078,2432.0,2431.9,0.41138]
[1728414689663,0.41138,2432.0,2431.9,0.41137]
[1728414689861,1.4442,2432.3,2431.7,4.23634]
[1728414690057,1.4442,2432.3,2432.0,0.41135]
[1728414690058,0.41136,2432.1,2432.0,0.41135]
[1728414690263,0.41138,2432.0,2431.9,0.41137]
[1728414690470,0.4114,2431.9,2431.8,0.41138]
[1728414690762,0.4114,2431.9,2431.5,0.422]
[1728414690763,0.4169,2431.9,2431.5,0.422]
[1728414690960,0.41143,2431.6,2431.5,0.41143]
[1728414691466,1.02851,2431.8,2431.6,0.41141]
[1728414691467,0.41142,2431.7,2431.6,0.41141]
[1728414694061,0.82829,2431.9,2431.8,0.4114]
[1728414694659,0.4169,2431.9,2431.8,0.4114]
[1728414699563,0.41137,2432.0,2431.7,4.0018]
[1728414699764,4.04595,2432.1,2432.0,0.41136]
[1728414702359,0.83595,2432.1,2432.0,0.41136]
[1728414706362,0.41138,2432.0,2431.8,3.2078]
[1728414706561,3.21,2431.9,2431.6,0.41142]
[1728414706769,0.41141,2431.7,2431.6,0.41142]
[1728414706962,1.455,2431.8,2431.3,4.0516]
[1728414707263,1.455,2431.8,2431.4,0.41145]
[1728414707264,0.41146,2431.5,2431.4,0.41145]
[1728414707465,0.3996,2431.7,2431.4,0.41145]
[1728414707667,0.79815,2431.6,2431.5,0.41143]
[1728414711571,0.41147,2431.5,2431.4,0.41145]
[1728414712977,0.41147,2431.5,2431.3,0.8438]
[1728414712978,0.3867,2431.6,2431.3,0.8438]
[1728414713178,0.79815,2431.6,2431.5,0.41145]
[1728414713672,0.3867,2431.6,2431.5,0.41145]
[1728414714178,0.4265,2431.8,2431.7,0.41141]
[1728414714980,1.43998,2431.7,2431.6,0.41142]
[1728414715178,0.81213,2431.7,2431.6,0.41142]
[1728414718478,1.5937952,2431.7,2431.6,0.41142]
[1728414720788,0.41147,2431.5,2431.0,1.02881]
[1728414721079,0.41151,2431.3,2431.2,0.41148]
[1728414721270,0.41152,2431.2,2431.1,0.4115]
[1728414723184,0.8108,2431.4,2430.9,4.62577]
[1728414723389,0.4115,2431.3,2431.2,0.41148]
[1728414724279,0.41152,2431.2,2431.1,0.4115]